bitfinex-derivatives/quotes_SOLF0:USTF0_20250321
["timestamp","ask_amount","ask_price","bid_price","bid_amount"]
[1742527404531,7.88206802,127.77,127.76,11.49574946]
[1742527406439,0.05146802,127.77,127.76,11.49574946]
[1742527407231,0.05146802,127.77,127.76,19.32664946]
[1742527407940,27.9,127.81,127.79,11.49574946]
[1742527408331,35.7281,127.81,127.79,11.49574946]
[1742527408940,35.77983599,127.81,127.79,11.55570846]
[1742527409242,27.95173599,127.81,127.8,11.49574946]
[1742527409546,0.05173599,127.81,127.8,11.49574946]
[1742527409936,0.05173599,127.81,127.8,19.32414946]
[1742527411043,0.05173599,127.81,127.79,0.059959]
[1742527411341,0.05173599,127.81,127.79,11.55570846]
[1742527411547,7.87983599,127.81,127.79,11.55570846]
[1742527412640,7.8284,127.8,127.79,11.55570846]
[1742527412840,7.8284,127.8,127.79,0.059959]
[1742527414840,35.7284,127.8,127.79,0.059959]
[1742527421345,7.8306,127.77,127.75,11.49574946]
[1742527421545,27.9,127.8,127.76,11.49574946]
[1742527421949,7.83,127.78,127.76,11.49574946]
[1742527422546,7.88384621,127.78,127.76,11.55122419]
[1742527423151,7.8303,127.77,127.76,11.55122419]
[1742527426451,7.88384621,127.78,127.76,11.55122419]
[1742527426658,0.05384621,127.78,127.77,11.49574946]
[1742527427254,0.05384621,127.78,127.77,19.32604946]
[1742527432061,0.05384621,127.78,127.77,11.49574946]
[1742527432561,0.05384621,127.78,127.77,19.32604946]
[1742527433264,0.05384621,127.78,127.77,11.49574946]
[1742527436564,0.05384621,127.78,127.77,19.32604946]
[1742527438965,0.05384621,127.78,127.77,11.49574946]
[1742527439464,7.88354621,127.78,127.77,11.49574946]
[1742527440765,7.8303,127.77,127.76,11.55122419]
[1742527441165,0.05384621,127.78,127.76,11.55122419]
[1742527441366,7.88384621,127.78,127.76,11.55122419]
[1742527442159,7.88384621,127.78,127.76,19.38212419]
[1742527442968,7.88384621,127.78,127.76,11.55122419]
[1742527444062,7.88384621,127.78,127.77,11.49574946]
[1742527444266,0.05384621,127.78,127.77,11.49574946]
[1742527444655,7.88354621,127.78,127.77,11.49574946]
[1742527444966,7.88354621,127.78,127.76,11.55122419]
[1742527445679,7.8303,127.77,127.76,11.55122419]
[1742527446464,7.8303,127.77,127.76,0.05547473]
[1742527449968,0.05384621,127.78,127.76,19.38172419]
[1742527450167,0.05384621,127.78,127.77,11.49574946]
[1742527450573,0.05384621,127.78,127.77,19.32604946]
[1742527451271,42.92548933,127.81,127.77,11.49574946]
[1742527451467,42.92548933,127.81,127.8,11.49574946]
[1742527452278,50.75328933,127.81,127.8,11.49574946]
[1742527452479,7.8278,127.81,127.8,11.49574946]
[1742527453976,7.8278,127.81,127.79,19.38249665]
[1742527454178,35.76615361,127.82,127.8,11.49574946]
[1742527455680,7.8278,127.81,127.8,11.49574946]
[1742527456481,35.76615361,127.82,127.8,19.32394946]
[1742527456777,35.76615361,127.82,127.81,11.49574946]
[1742527457776,0.05865361,127.82,127.81,19.32354946]
[1742527460981,0.05865361,127.82,127.81,47.20354946]
[1742527464874,0.05865361,127.82,127.81,11.49574946]
[1742527467181,7.88585361,127.82,127.81,11.49574946]
[1742527467778,0.05865361,127.82,127.81,11.49574946]
[1742527469387,7.88585361,127.82,127.81,11.49574946]
[1742527469983,7.8278,127.81,127.8,11.49574946]
[1742527474382,27.86,127.81,127.79,0.05824719]
[1742527475490,7.8284,127.8,127.79,0.05824719]
[1742527477998,7.8284,127.8,127.79,11.55399665]
[1742527478190,7.8284,127.8,127.79,0.05824719]
[1742527479397,7.8284,127.8,127.79,11.55399665]
[1742527479592,0.05865361,127.82,127.79,11.55399665]
[1742527479798,27.91865361,127.82,127.81,11.49574946]
[1742527479997,0.05865361,127.82,127.81,11.49574946]
[1742527480593,7.88615361,127.82,127.81,11.49574946]
[1742527482300,7.88615361,127.82,127.8,11.49574946]
[1742527483502,7.8278,127.81,127.8,11.49574946]
[1742527485605,7.88615361,127.82,127.8,11.49574946]
[1742527486207,7.88615361,127.82,127.8,19.32414946]
[1742527489404,7.88615361,127.82,127.8,11.49574946]
[1742527490911,7.88615361,127.82,127.8,19.32414946]
[1742527491513,7.88615361,127.82,127.8,11.49574946]
[1742527493012,7.8278,127.81,127.79,11.55399665]
[1742527493908,11.55440307,127.82,127.79,0.05824719]
[1742527494112,27.86,127.81,127.79,0.05824719]
[1742527494307,39.35574946,127.81,127.79,0.05824719]
[1742527494503,7.8284,127.8,127.79,0.05824719]
[1742527508313,277.65574946,127.8,127.62,87.02438027]
[1742527508513,11.49574946,127.74,127.68,11.49574946]
[1742527508721,27.86,127.73,127.68,11.49574946]
[1742527509217,7.8346,127.7,127.68,11.49574946]
[1742527509416,35.6946,127.7,127.69,0.05864328]
[1742527513925,27.86,127.7,127.69,0.05864328]
[1742527514119,27.86,127.7,127.69,11.55439274]
[1742527514324,27.93974257,127.72,127.69,11.55439274]
[1742527514524,27.93974257,127.72,127.7,11.49574946]
[1742527514727,35.77334257,127.72,127.7,11.49574946]
[1742527515328,7.8339,127.71,127.7,11.49574946]
[1742527515529,27.93974257,127.72,127.7,11.49574946]
[1742527515730,27.93974257,127.72,127.71,11.49574946]
[1742527515933,27.93974257,127.72,127.69,7.89384328]
[1742527515934,27.93974257,127.72,127.7,11.49574946]
[1742527516431,27.93974257,127.72,127.69,19.38959274]
[1742527516823,7.89334257,127.72,127.69,19.38959274]
[1742527517025,0.05974257,127.72,127.71,11.49574946]
[1742527517425,0.05974257,127.72,127.71,19.32964946]
[1742527544060,15.73494946,127.79,127.71,11.49574946]
[1742527544260,32.1192,127.79,127.75,11.49574946]
[1742527544658,309.09428933,127.8,127.77,7.8303]
[1742527544965,27.86,127.79,127.76,11.49574946]
[1742527545465,27.91654135,127.79,127.77,7.8297]
[1742527546571,35.74574135,127.79,127.77,7.8297]
[1742527546755,35.74574135,127.79,127.76,19.38329547]
[1742527547063,35.74574135,127.79,127.76,7.88754601]
[1742527547867,7.88574135,127.79,127.77,7.8303]
[1742527549068,7.88574135,127.79,127.76,7.88754601]
[1742527550963,7.8297,127.78,127.76,7.88754601]
[1742527552563,7.88594135,127.79,127.76,7.88754601]
[1742527554666,7.8297,127.78,127.76,7.88754601]
[1742527556268,7.88584135,127.79,127.76,7.88754601]
[1742527558274,7.88584135,127.79,127.77,7.8302]
[1742527560575,7.8297,127.78,127.76,7.88754601]
[1742527564780,7.88594135,127.79,127.76,7.88754601]
[1742527567074,0.05654135,127.79,127.76,7.88754601]
[1742527567277,7.8297,127.78,127.76,7.88754601]
[1742527567983,7.88594135,127.79,127.76,7.88754601]
[1742527568877,7.8297,127.78,127.76,7.88754601]
[1742527570084,0.05654135,127.79,127.77,7.8303]
[1742527572484,7.88594135,127.79,127.77,7.8303]
[1742527573282,7.88594135,127.79,127.76,19.38329547]
[1742527574477,7.88594135,127.79,127.77,7.8302]
[1742527575482,0.05654135,127.79,127.78,7.8297]
[1742527579478,0.05654135,127.79,127.77,7.83]
[1742527579777,0.05654135,127.79,127.76,0.05694601]
[1742527579978,7.8297,127.78,127.76,7.88754601]
[1742527580179,0.05654135,127.79,127.76,7.88754601]
[1742527581190,7.8297,127.78,127.76,7.88754601]
[1742527581381,39.35574946,127.78,127.76,0.05694601]
[1742527582288,27.86,127.78,127.76,0.05694601]
[1742527582486,7.8303,127.77,127.76,0.05694601]
[1742527582676,27.86,127.78,127.76,0.05694601]
[1742527583077,35.69,127.78,127.76,7.88774601]
[1742527583586,27.86,127.78,127.76,7.88774601]
[1742527584680,27.86,127.78,127.77,7.8303]
[1742527584881,0.05654135,127.79,127.76,11.55269547]
[1742527585180,0.05654135,127.79,127.78,19.32544946]
[1742527589993,0.05654135,127.79,127.78,11.49574946]
[1742527592296,0.05654135,127.79,127.77,19.32564946]
[1742527593599,7.88564135,127.79,127.77,19.32564946]
[1742527594495,0.05654135,127.79,127.77,19.32564946]
[1742527596900,0.05654135,127.79,127.76,0.05694601]
[1742527597294,39.39229081,127.79,127.76,0.05694601]
[1742527598509,7.83,127.78,127.76,0.05694601]
[1742527599305,7.83,127.78,127.76,7.88774601]
[1742527600198,47.22159081,127.79,127.76,7.88774601]
[1742527600707,35.72584135,127.79,127.76,7.88774601]
[1742527602607,27.89654135,127.79,127.77,19.32574946]
[1742527602802,27.89654135,127.79,127.77,11.49574946]
[1742527603005,0.05654135,127.79,127.77,11.49574946]
[1742527603206,0.05654135,127.79,127.78,7.8297]
[1742527604107,0.05654135,127.79,127.78,19.32544946]
[1742527606512,0.05654135,127.79,127.78,7.8297]
[1742527608312,0.05654135,127.79,127.77,19.32564946]
[1742527609511,0.05654135,127.79,127.78,7.8297]
[1742527612016,7.88564135,127.79,127.77,7.8299]
[1742527612216,7.88564135,127.79,127.76,0.05694601]
[1742527612217,11.55229081,127.79,127.76,0.05694601]
[1742527615021,27.84,127.78,127.76,0.05694601]
[1742527615319,7.8303,127.77,127.76,0.05694601]
[1742527615522,27.84,127.78,127.76,0.05694601]
[1742527616923,27.84,127.78,127.76,7.88754601]
[1742527618023,35.6697,127.78,127.76,7.88754601]
[1742527619223,27.84,127.78,127.76,7.88754601]
[1742527619718,7.88594135,127.79,127.76,7.88754601]
[1742527620723,7.88594135,127.79,127.77,7.8302]
[1742527621925,7.88594135,127.79,127.76,7.88754601]
[1742527622123,7.88594135,127.79,127.76,0.05694601]
[1742527622625,7.88594135,127.79,127.76,7.88744601]
[1742527624827,7.8298,127.78,127.76,0.05694601]
[1742527626128,7.8303,127.77,127.76,0.05694601]
[1742527632239,7.83,127.78,127.76,0.05694601]
[1742527632430,7.83,127.78,127.76,7.88784601]
[1742527632631,7.83,127.78,127.76,0.05694601]
[1742527633937,13.54399081,127.79,127.76,0.05694601]
[1742527634536,7.8303,127.77,127.76,0.05694601]
[1742527637128,35.6703,127.77,127.76,0.05694601]
[1742527656162,47.16604946,127.77,127.76,0.05694601]
[1742527659262,7.8328,127.73,127.7,13.62884946]
[1742527659461,7.8328,127.73,127.69,269.87574946]
[1742527659660,39.33574946,127.74,127.69,258.38]
[1742527659849,11.49574946,127.73,127.69,277.71054946]
[1742527660054,11.49574946,127.72,127.67,11.49574946]
[1742527660359,39.33574946,127.71,127.66,17.90864946]
[1742527660659,7.8349,127.7,127.68,0.04989742]
[1742527661562,7.8349,127.7,127.68,7.88569742]
[1742527661758,39.3918667,127.71,127.68,0.04989742]
[1742527661966,0.05611724,127.71,127.7,11.49574946]
[1742527662258,0.05611724,127.71,127.7,19.33034946]
[1742527676476,0.05611724,127.71,127.7,7.8346]
[1742527676681,0.05611724,127.71,127.69,7.8348]
[1742527676874,0.05611724,127.71,127.68,11.54564688]
[1742527677071,0.05611724,127.71,127.69,7.8349]
[1742527677472,7.89011724,127.71,127.69,7.8349]
[1742527677973,7.89011724,127.71,127.68,7.88529742]
[1742527679675,7.8347,127.7,127.68,7.88529742]
[1742527680177,39.3918667,127.71,127.68,7.88529742]
[1742527680876,7.8346,127.7,127.68,7.88529742]
[1742527681477,11.49574946,127.7,127.68,0.04989742]
[1742527681680,11.49574946,127.69,127.68,0.04989742]
[1742527681879,11.49574946,127.7,127.68,0.04989742]
[1742527682078,39.3918667,127.71,127.68,0.04989742]
[1742527682772,7.835,127.7,127.68,0.04989742]
[1742527683081,39.3918667,127.71,127.68,0.04989742]
[1742527683282,11.49574946,127.7,127.68,0.04989742]
[1742527683679,39.3918667,127.71,127.68,0.04989742]
[1742527683979,27.89611724,127.71,127.68,0.04989742]
[1742527684282,27.89611724,127.71,127.69,11.49574946]
[1742527684479,0.05611724,127.71,127.69,11.49574946]
[1742527684875,0.05611724,127.71,127.7,7.8346]
[1742527686883,0.05611724,127.71,127.7,19.33034946]
[1742527687375,0.05611724,127.71,127.7,7.8346]
[1742527690075,0.05611724,127.71,127.7,19.33034946]
[1742527690481,0.05611724,127.71,127.7,47.17034946]
[1742527690677,70.76548933,127.76,127.7,39.33574946]
[1742527690982,42.92548933,127.76,127.73,11.49574946]
[1742527691182,42.92548933,127.76,127.74,7.8318]
[1742527691779,42.97564527,127.76,127.74,7.88243156]
[1742527692084,0.05015594,127.76,127.74,7.88243156]
[1742527693988,0.05015594,127.76,127.75,7.8315]
[1742527694584,0.05015594,127.76,127.75,19.32724946]
[1742527698290,0.05015594,127.76,127.75,7.8315]
[1742527699081,0.05015594,127.76,127.74,7.88243156]
[1742527699297,27.87015594,127.76,127.74,7.88243156]
[1742527700599,27.87015594,127.76,127.74,19.37818102]
[1742527701595,35.70115594,127.76,127.74,19.37818102]
[1742527702093,35.70115594,127.76,127.74,7.88243156]
[1742527703293,27.87015594,127.76,127.74,7.88243156]
[1742527703793,27.87015594,127.76,127.75,7.8315]
[1742527703991,0.05015594,127.76,127.75,7.8315]
[1742527704799,0.05015594,127.76,127.74,19.37818102]
[1742527706096,0.05015594,127.76,127.75,7.8315]
[1742527708093,0.05015594,127.76,127.75,19.32724946]
[1742527709897,0.05015594,127.76,127.75,7.8315]
[1742527714097,0.05015594,127.76,127.74,19.37818102]
[1742527715100,0.05015594,127.76,127.75,19.32724946]
[1742527721995,7.8287,127.8,127.77,7.8298]
[1742527722300,70.74548933,127.83,127.79,11.49574946]
[1742527722502,78.57238933,127.83,127.8,11.49574946]
[1742527723003,78.57238933,127.83,127.8,19.32384946]
[1742527723202,50.80765961,127.83,127.8,19.38368856]
[1742527724002,42.98075961,127.83,127.81,7.8278]
[1742527724801,0.05527028,127.83,127.81,7.8278]
[1742527725706,7.88187028,127.83,127.8,19.38368856]
[1742527726306,7.8273,127.82,127.8,19.38368856]
[1742527727209,7.88207028,127.83,127.8,19.38368856]
[1742527734217,7.8273,127.82,127.8,11.55558856]
[1742527735612,7.8273,127.82,127.8,19.38398856]
[1742527738004,0.05527028,127.83,127.81,7.8277]
[1742527738208,0.05527028,127.83,127.81,11.49574946]
[1742527738915,0.05527028,127.83,127.81,19.32324946]
[1742527740417,7.88197028,127.83,127.81,19.32324946]
[1742527742322,7.88197028,127.83,127.81,7.8275]
[1742527743328,0.05527028,127.83,127.81,7.8275]
[1742527744225,7.88187028,127.83,127.81,7.8275]
[1742527746825,0.05527028,127.83,127.82,7.8272]
[1742527749231,0.05527028,127.83,127.82,19.32294946]
[1742527758841,35.6038,127.88,127.85,11.49574946]
[1742527759849,35.65370935,127.88,127.85,11.54552516]
[1742527760048,7.87370935,127.88,127.85,11.54552516]
[1742527760346,7.8243,127.87,127.85,11.54552516]
[1742527760740,7.8243,127.87,127.85,0.0497757]
[1742527762248,7.8243,127.87,127.85,19.37072516]
[1742527762650,7.8243,127.87,127.85,7.8749757]
[1742527765663,7.8248,127.86,127.85,0.0497757]
[1742527767549,7.8244,127.87,127.85,7.8751757]
[1742527768249,7.8244,127.87,127.85,0.0497757]
[1742527770056,7.8248,127.86,127.85,0.0497757]
[1742527770853,7.8245,127.87,127.85,0.0497757]
[1742527772159,7.8245,127.87,127.85,7.8749757]
[1742527772363,7.87360935,127.88,127.85,11.54552516]
[1742527772859,7.87360935,127.88,127.86,7.8244]
[1742527773258,0.04990935,127.88,127.85,11.54552516]
[1742527774159,0.04990935,127.88,127.86,11.49574946]
[1742527774546,0.04990935,127.88,127.87,7.8241]
[1742527775252,0.04990935,127.88,127.87,19.31984946]
[1742527780554,0.04990935,127.88,127.87,11.49574946]
[1742527781262,7.87340935,127.88,127.87,11.49574946]
[1742527781761,0.04990935,127.88,127.87,11.49574946]
[1742527782357,0.04990935,127.88,127.86,47.10004946]
[1742527783163,0.04990935,127.88,127.87,19.31984946]
[1742527788566,35.6008,127.93,127.87,11.49574946]
[1742527788770,7.8208,127.93,127.9,11.49574946]
[1742527788966,41.986,127.94,127.9,11.49574946]
[1742527789265,41.986,127.94,127.91,7.8213]
[1742527789663,7.8205,127.93,127.91,7.87365319]
[1742527789970,34.22342529,127.94,127.91,7.87365319]
[1742527790267,7.8206,127.93,127.91,0.05235319]
[1742527793071,7.8206,127.93,127.91,19.36970265]
[1742527793768,7.8206,127.93,127.91,11.54810265]
[1742527794065,7.8211,127.92,127.91,11.54810265]
[1742527794468,7.8211,127.92,127.91,0.05235319]
[1742527800480,19.31684946,127.92,127.91,0.05235319]
[1742527802579,7.8211,127.92,127.91,0.05235319]
[1742527804982,7.8208,127.93,127.91,0.05235319]
[1742527805382,7.8208,127.93,127.91,7.87375319]
[1742527805684,42.02362529,127.94,127.91,7.87375319]
[1742527805875,0.05762529,127.94,127.92,11.49574946]
[1742527806475,0.05762529,127.94,127.93,7.8205]
[1742527807181,0.05762529,127.94,127.93,19.31624946]
[1742527814481,0.05762529,127.94,127.93,47.07624946]
[1742527815687,0.05762529,127.94,127.92,11.49574946]
[1742527816180,0.05762529,127.94,127.92,19.31674946]
[1742527816589,0.05762529,127.94,127.93,11.49574946]
[1742527817388,0.05762529,127.94,127.93,19.31624946]
[1742527819794,0.05762529,127.94,127.92,7.8208]
[1742527819990,0.05762529,127.94,127.93,11.49574946]
[1742527822296,0.05762529,127.94,127.93,19.31624946]
[1742527827598,0.05762529,127.94,127.92,19.31644946]
[1742527828000,0.05762529,127.94,127.93,11.49574946]
[1742527828199,0.05762529,127.94,127.93,19.31624946]
[1742527835200,7.818,127.98,127.96,7.8184]
[1742527835400,35.5571,127.99,127.96,19.31414946]
[1742527836308,35.61612056,127.99,127.96,19.36535175]
[1742527836607,7.8175,127.98,127.96,19.36535175]
[1742527837008,7.8175,127.98,127.96,7.86960229]
[1742527837311,7.8175,127.98,127.96,0.05120229]
[1742527838411,35.61612056,127.99,127.96,11.54695175]
[1742527839203,35.61612056,127.99,127.97,11.49574946]
[1742527839204,0.05902056,127.99,127.97,11.49574946]
[1742527839400,0.05902056,127.99,127.98,11.49574946]
[1742527840413,7.87582056,127.99,127.98,11.49574946]
[1742527841510,0.05902056,127.99,127.98,11.49574946]
[1742527842515,0.05902056,127.99,127.97,19.31354946]
[1742527843115,0.05902056,127.99,127.98,7.8174]
[1742527843308,0.05902056,127.99,127.98,19.31314946]
[1742527845711,0.05902056,127.99,127.98,19.90567205]
[1742527854522,50.97459078,128.04,127.98,12.08827205]
[1742527854722,72.82988933,128.04,128.01,19.90347205]
[1742527854928,72.82988933,128.04,128.02,12.08827205]
[1742527855530,72.82988933,128.04,128.02,19.90277205]
[1742527855934,72.87915199,128.04,128.02,19.9526533]
[1742527856132,42.97475199,128.04,128.03,7.8144]
[1742527856434,42.97475199,128.04,128.02,12.1381533]
[1742527856637,10.78063499,128.04,128.02,0.04988125]
[1742527856831,0.04926266,128.04,128.02,0.04988125]
[1742527857135,7.86336266,128.04,128.02,0.04988125]
[1742527857326,0.04926266,128.04,128.02,0.04988125]
[1742527857833,7.8153,128.02,127.99,12.08827205]
[1742527858332,7.8159,128.01,127.91,15.6427]
[1742527858535,29.739,128.03,127.99,12.08827205]
[1742527858736,7.86653038,128.02,128.0,0.05770506]
[1742527859836,7.8156,128.01,128.0,0.05770506]
[1742527862031,9.8131,128.01,128.0,0.05770506]
[1742527867441,14.08577205,128.01,127.94,12.08827205]
[1742527867646,12.08827205,127.99,127.93,270.10827205]
[1742527868037,7.819,127.96,127.93,270.10827205]
[1742527868241,7.819,127.96,127.95,12.08827205]
[1742527868944,7.8193,127.95,127.94,0.05078413]
[1742527872952,0.04946667,127.97,127.94,12.13905618]
[1742527873241,0.04946667,127.97,127.96,12.08827205]
[1742527873649,42.92548933,127.99,127.98,7.8174]
[1742527873842,42.92548933,127.99,127.98,19.90567205]
[1742527875837,0.05199696,128.0,127.99,7.8168]
[1742527876036,0.05199696,128.0,127.99,19.90507205]
[1742527879237,0.05199696,128.0,127.99,47.62507205]
[1742527879456,27.72,128.05,128.03,7.814]
[1742527879643,27.72,128.05,128.02,12.08827205]
[1742527879846,27.72,128.05,128.01,19.90367205]
[1742527880150,7.8141,128.04,128.01,19.90367205]
[1742527880353,12.08827205,128.04,127.99,47.62477205]
[1742527880552,12.1477295,128.04,128.01,0.05419345]
[1742527880844,7.8153,128.02,128.01,0.05419345]
[1742527883948,7.8147,128.03,128.01,0.05419345]
[1742527884949,7.87355745,128.04,128.01,7.86979345]
[1742527885161,0.05945745,128.04,128.02,12.08827205]
[1742527885547,0.05945745,128.04,128.03,12.08827205]
[1742527885756,0.05945745,128.04,128.03,19.90267205]
[1742527886559,0.05945745,128.04,128.03,12.08827205]
[1742527887056,0.05945745,128.04,128.03,19.90267205]
[1742527887358,0.05945745,128.04,128.02,12.08827205]
[1742527887553,0.05945745,128.04,128.02,19.90297205]
[1742527888653,0.05945745,128.04,128.03,7.8144]
[1742527889053,0.05945745,128.04,128.02,12.08827205]
[1742527889453,0.05945745,128.04,128.02,7.8147]
[1742527890058,0.05945745,128.04,128.02,19.89640327]
[1742527890857,7.87325745,128.04,128.02,12.08170327]
[1742527892361,7.87325745,128.04,128.02,7.8149]
[1742527893154,0.05945745,128.04,128.03,7.8144]
[1742527893458,0.05945745,128.04,128.03,19.89610327]
[1742527894954,0.05945745,128.04,128.03,7.8144]
[1742527895259,0.05945745,128.04,128.02,19.89640327]
[1742527895562,0.05945745,128.04,128.02,12.08170327]
[1742527895965,0.05945745,128.04,128.01,0.05419345]
[1742527896660,7.8147,128.03,128.01,7.86969345]
[1742527897562,7.8147,128.03,128.01,0.05419345]
[1742527898366,7.87345745,128.04,128.02,12.08170327]
[1742527899465,7.87345745,128.04,128.02,19.89670327]
[1742527901451,7.87345745,128.04,128.02,12.08170327]
[1742527901666,7.8144,128.03,128.02,12.08170327]
[1742527901966,0.05945745,128.04,128.02,12.08170327]
[1742527902270,7.87355745,128.04,128.02,12.08170327]
[1742527902563,0.05945745,128.04,128.02,12.08170327]
[1742527903462,0.05945745,128.04,127.95,21.8771]
[1742527903463,39.78170327,128.03,127.96,12.08170327]
[1742527903668,12.08170327,128.01,127.96,12.08170327]
[1742527903869,27.7,128.0,127.96,12.08170327]
[1742527904068,7.8172,127.99,127.96,19.90010327]
[1742527904460,27.7,128.0,127.95,2.0324]
[1742527904663,0.0536762,127.99,127.97,19.89960327]
[1742527905564,7.8705762,127.99,127.97,12.08170327]
[1742527908673,7.8174,127.98,127.97,12.08170327]
[1742527909172,7.818,127.97,127.96,0.05769858]
[1742527911076,7.8177,127.98,127.96,0.05769858]
[1742527914672,7.818,127.97,127.96,0.05769858]
[1742527917078,7.8177,127.98,127.96,0.05769858]
[1742527920383,7.818,127.97,127.96,0.05769858]
[1742527921886,35.538,127.97,127.96,0.05769858]
[1742527923982,12.08170327,127.96,127.91,12.08170327]
[1742527924188,16.08800327,127.96,127.91,19.90310327]
[1742527924579,7.8204,127.94,127.91,19.90310327]
[1742527924781,35.5404,127.94,127.91,19.90310327]
[1742527925088,27.77671816,127.94,127.91,0.05928862]
[1742527926283,39.85842143,127.94,127.91,0.05928862]
[1742527926588,7.8211,127.92,127.91,0.05928862]
[1742527932193,7.8205,127.93,127.91,0.05928862]
[1742527933198,7.8211,127.92,127.91,0.05928862]
[1742527935799,0.05671816,127.94,127.91,12.14099189]
[1742527936000,0.05671816,127.94,127.92,12.08170327]
[1742527936204,7.87671816,127.94,127.92,19.90280327]
[1742527936904,7.87671816,127.94,127.92,12.08170327]
[1742527937704,7.87671816,127.94,127.92,19.90270327]
[1742527938410,0.05671816,127.94,127.93,19.90220327]
[1742527938903,0.05671816,127.94,127.92,12.08170327]
[1742527939293,0.05671816,127.94,127.92,19.90250327]
[1742527940103,7.87691816,127.94,127.92,12.08170327]
[1742527942599,7.87691816,127.94,127.92,19.90270327]
[1742527943408,0.05671816,127.94,127.92,19.90270327]
[1742527943809,0.05671816,127.94,127.93,7.8205]
[1742527945410,0.05671816,127.94,127.92,19.90250327]
[1742527945912,7.87671816,127.94,127.92,19.90250327]
[1742527946412,7.87671816,127.94,127.92,7.8208]
[1742527947311,7.87671816,127.94,127.91,19.96239189]
[1742527948112,0.05671816,127.94,127.92,7.821]
[1742527949311,0.05671816,127.94,127.92,19.90270327]
[1742527951516,0.05671816,127.94,127.93,7.8205]
[1742527952014,0.05671816,127.94,127.92,19.90250327]
[1742527952818,7.87661816,127.94,127.92,7.8208]
[1742527958620,7.8206,127.93,127.91,19.96239189]
[1742527960213,7.8211,127.92,127.91,12.14099189]
[1742527960418,7.8211,127.92,127.91,0.05928862]
[1742527961513,27.72,127.93,127.91,12.14099189]
[1742527962315,35.5405,127.93,127.91,19.96239189]
[1742527962515,27.72,127.93,127.91,19.96239189]
[1742527964525,35.5405,127.93,127.91,19.96239189]
[1742527964819,35.5405,127.93,127.91,0.05928862]
[1742527965122,27.72,127.93,127.91,0.05928862]
[1742527966424,35.5408,127.93,127.91,7.88098862]
[1742527967927,35.5408,127.93,127.91,0.05928862]
[1742527968725,7.8211,127.92,127.91,0.05928862]
[1742527969425,35.5408,127.93,127.91,0.05928862]
[1742527969825,27.72,127.93,127.91,0.05928862]
[1742527971127,7.8211,127.92,127.91,0.05928862]
[1742527975130,0.05671816,127.94,127.93,7.8205]
[1742527975726,0.05671816,127.94,127.93,19.90220327]
[1742527976324,0.05671816,127.94,127.93,47.62220327]
[1742527979728,42.92548933,127.98,127.97,7.818]
[1742527979923,42.92548933,127.99,127.97,12.08170327]
[1742527980430,42.92548933,127.99,127.96,12.08170327]
[1742527980632,42.92548933,127.99,127.95,12.08170327]
[1742527980827,7.8183,127.97,127.96,0.05502503]
[1742527981833,19.90000327,127.97,127.96,0.05502503]
[1742527982629,7.8199,127.94,127.92,12.08170327]
[1742527983141,35.5395,127.95,127.92,19.90270327]
[1742527983638,7.82,127.94,127.92,19.95264628]
[1742527984739,7.82,127.94,127.92,12.13164628]
[1742527985739,7.82,127.94,127.92,19.95264628]
[1742527986439,7.82,127.94,127.92,12.13164628]
[1742527986833,7.8205,127.93,127.92,12.13164628]
[1742527987039,7.8205,127.93,127.92,0.04994301]
[1742527991450,7.8201,127.94,127.92,0.04994301]
[1742527991840,35.59684246,127.95,127.92,0.04994301]
[1742527992043,27.77724246,127.95,127.94,12.08170327]
[1742527992947,27.77724246,127.95,127.93,12.08170327]
[1742527993336,35.59654246,127.95,127.93,12.08170327]
[1742527993540,27.77724246,127.95,127.93,12.08170327]
[1742527994240,27.77724246,127.95,127.92,0.04994301]
[1742527994447,39.85894573,127.95,127.92,0.04994301]
[1742527994744,42.00714573,127.95,127.92,0.04994301]
[1742527995446,7.8205,127.93,127.92,0.04994301]
[1742528006950,19.90220327,127.93,127.92,0.04994301]
[1742528007158,7.8235,127.88,127.87,12.08170327]
[1742528007352,7.8235,127.88,127.85,270.12170327]
[1742528007559,7.8235,127.88,127.85,277.94670327]
[1742528008352,0.05134584,127.88,127.86,7.8247]
[1742528008553,0.05134584,127.88,127.85,270.17281621]
[1742528008949,0.05134584,127.88,127.86,7.8245]
[1742528009458,0.05134584,127.88,127.85,270.17281621]
[1742528009758,0.05134584,127.88,127.87,12.08170327]
[1742528010161,0.05134584,127.88,127.87,19.90580327]
[1742528010362,0.05134584,127.88,127.87,12.08170327]
[1742528011256,7.87494584,127.88,127.85,270.17281621]
[1742528011459,0.05134584,127.88,127.85,12.13281621]
[1742528011763,7.8248,127.86,127.85,0.05111294]
[1742528023767,7.8266,127.83,127.8,12.08170327]
[1742528023967,27.72,127.84,127.8,12.08170327]
[1742528024168,27.72,127.83,127.8,12.08170327]
[1742528024373,7.8277,127.82,127.8,12.08170327]